bitfinex/quotes_SOLUSD_20220227
["timestamp","ask_amount","ask_price","bid_price","bid_amount"]
[1645924029225,4.572,87.518,87.4,13.69]
[1645924029624,4.573,87.537,87.4,13.69]
[1645924029822,1.91509721,87.529,87.4,13.69]
[1645924030024,2.37817666,87.538,87.4,13.69]
[1645924030224,2.37817666,87.538,87.401,80.32990481]
[1645924030424,4.573,87.537,87.401,80.32990481]
[1645924030626,4.573,87.537,87.401,50.52572695]
[1645924030829,2.38978241,87.499,87.401,50.52572695]
[1645924032028,2.38978241,87.499,87.368,73.5758]
[1645924032029,2.38978241,87.499,87.36,13.69]
[1645924032228,2.38978241,87.499,87.359,22.6999]
[1645924032430,4.89887359,87.498,87.359,22.6999]
[1645924032830,2.38978241,87.499,87.359,22.6999]
[1645924033032,2.38978241,87.499,87.376,47.93902551]
[1645924033230,17.1687,87.48,87.376,47.93902551]
[1645924033432,2.08452703,87.479,87.376,47.93902551]
[1645924034730,17.1692,87.47,87.376,47.93902551]
[1645924034932,1.82253435,87.469,87.376,47.93902551]
[1645924035133,1.82253435,87.469,87.331,73.0083]
[1645924035337,113.6,87.468,87.331,73.0083]
[1645924035534,2.11539791,87.467,87.375,3.89131187]
[1645924035937,17.1749,87.44,87.375,3.89131187]
[1645924036138,1.92261651,87.439,87.375,3.89131187]
[1645924037544,57.2657,87.43,87.26,13.69]
[1645924037745,13.69,87.42,87.25,25.61109599]
[1645924037945,17.1877,87.41,87.27,53.45705601]
[1645924038148,13.69,87.4,87.27,53.45705601]
[1645924038346,2.34303143,87.399,87.27,53.45705601]
[1645924039338,2.34303143,87.399,87.271,4.58]
[1645924040537,2.34303143,87.399,87.27,67.14705601]
[1645924040740,2.34303143,87.399,87.271,7.32678921]
[1645924041236,2.34303143,87.399,87.271,4.58]
[1645924041839,2.34303143,87.399,87.27,53.45705601]
[1645924042539,2.34303143,87.399,87.271,4.58]
[1645924042742,2.34303143,87.399,87.271,12.94678921]
[1645924042944,1.81213921,87.408,87.272,28.8127112]
[1645924043140,1.81213921,87.408,87.273,4.829]
[1645924043342,1.81213921,87.408,87.273,7.57578921]
[1645924043543,1.81213921,87.408,87.274,53.7511287]
[1645924043745,1.81213921,87.408,87.28,17.1798]
[1645924043943,1.81213921,87.408,87.281,4.579]
[1645924044149,1.81213921,87.408,87.256,2.74678921]
[1645924044344,0.65494718,87.407,87.214,5.52]
[1645924044646,0.65494718,87.407,87.221,24.9384175]
[1645924044843,0.65494718,87.407,87.23,13.69]
[1645924045043,0.65494718,87.407,87.231,55.04128598]
[1645924045244,2.33527808,87.405,87.232,4.58]
[1645924045444,2.33527808,87.405,87.25,17.1864]
[1645924045647,115.72467724,87.399,87.251,4.58]
[1645924045846,115.72467724,87.399,87.153,41.47228456]
[1645924045847,113.6,87.389,87.219,4.58]
[1645924046048,2.01463909,87.386,87.219,4.58]
[1645924046248,4.581,87.385,87.201,4.581]
[1645924046450,0.65494718,87.385,87.22,17.1918]
[1645924046646,2.01463909,87.386,87.222,59.29774526]
[1645924046846,4.581,87.385,87.222,59.29774526]
[1645924047048,0.65494718,87.385,87.222,59.29774526]
[1645924047248,2.01463909,87.386,87.224,2.45711756]
[1645924047448,2.01463909,87.386,87.24,17.1881]
[1645924047649,57.3317,87.37,87.223,4.581]
[1645924047946,13.69,87.36,87.189,0.61743752]
[1645924048147,120.67765166,87.359,87.189,0.61743752]
[1645924048368,30.74143327,87.359,87.189,0.61743752]
[1645924048649,4.88,87.352,87.19,62.77586396]
[1645924048850,13.69,87.34,87.19,58.19286396]
[1645924049048,2.02899868,87.338,87.19,58.19286396]
[1645924049247,2.02899868,87.338,87.191,4.583]
[1645924049448,4.583,87.337,87.191,4.583]
[1645924049849,2.02899868,87.338,87.19,71.88286396]
[1645924049850,6.61199868,87.338,87.19,71.88286396]
[1645924050048,6.61199868,87.338,87.191,1.82604659]
[1645924050250,2.02899868,87.338,87.192,29.7714175]
[1645924050447,2.02899868,87.338,87.192,29.5214175]
[1645924050647,2.02899868,87.338,87.192,4.583]
[1645924050847,2.02899868,87.338,87.19,71.88286396]
[1645924050848,2.02899868,87.338,87.191,4.583]
[1645924051249,6.61199868,87.338,87.191,4.583]
[1645924051449,2.02899868,87.338,87.191,4.583]
[1645924051650,1.81463854,87.319,87.191,4.583]
[1645924051849,1.81463854,87.319,87.19,58.19286396]
[1645924052251,1.81463854,87.319,87.191,4.583]
[1645924052653,1.81463854,87.319,87.19,58.19286396]
[1645924052654,4.583,87.318,87.19,58.19286396]
[1645924052856,5.56542077,87.318,87.19,58.19286396]
[1645924053055,0.98242077,87.318,87.191,4.583]
[1645924053253,1.81463854,87.319,87.191,4.583]
[1645924053456,1.81463854,87.319,87.189,0.61743752]
[1645924053457,6.39763854,87.319,87.189,0.61743752]
[1645924053658,17.2164,87.27,87.189,0.61743752]
[1645924053859,30.9064,87.27,87.189,0.61743752]
[1645924054056,2.30654333,87.269,87.189,0.61743752]
[1645924054255,1.87454525,87.268,87.189,0.61743752]
[1645924054658,1.87454525,87.268,87.189,0.11743752]
[1645924055459,1.98408278,87.279,87.189,0.11743752]
[1645924056080,1.98408278,87.279,87.189,6.92743752]
[1645924056280,2.38784156,87.286,87.19,54.33201033]
[1645924056486,2.38784156,87.286,87.19,56.57879954]
[1645924056680,2.38784156,87.286,87.191,116.34678921]
[1645924056881,2.38784156,87.286,87.191,120.93178921]
[1645924057083,2.38784156,87.286,87.191,4.585]
[1645924057281,2.38784156,87.286,87.19,67.52201033]
[1645924057686,2.38784156,87.286,87.191,4.585]
[1645924057983,2.38784156,87.286,87.191,7.59]
[1645924058183,24.7303,87.287,87.191,7.59]
[1645924058184,24.7303,87.287,87.201,113.6]
[1645924058381,24.7303,87.287,87.21,13.69]
[1645924058586,2.12467606,87.319,87.211,50.74527284]
[1645924058982,2.12467606,87.319,87.211,53.49206205]
[1645924059182,2.12467606,87.319,87.212,116.34678921]
[1645924059682,2.12467606,87.319,87.212,2.74678921]
[1645924059883,2.12467606,87.319,87.211,50.74527284]
[1645924060483,2.12467606,87.319,87.221,113.6]
[1645924060786,69.3435,87.338,87.232,44.32480922]
[1645924060787,1.87535791,87.337,87.232,44.32480922]
[1645924060985,1.87535791,87.337,87.233,113.6]
[1645924061183,1.87535791,87.337,87.233,4.582]
[1645924061584,1.87535791,87.337,87.232,44.32480922]
[1645924061784,1.87535791,87.337,87.24,13.69]
[1645924062788,1.87535791,87.337,87.241,113.6]
[1645924062984,1.87535791,87.337,87.26,17.1868]
[1645924063183,23.5939,87.338,87.261,159.20356265]
[1645924063384,23.5939,87.338,87.261,48.35035186]
[1645924063786,23.5939,87.338,87.262,2.74678921]
[1645924064184,1.98944966,87.337,87.261,45.60356265]
[1645924064589,1.98944966,87.337,87.27,17.1848]
[1645924064785,1.98944966,87.337,87.27,13.69]
[1645924065586,1.98944966,87.337,87.25,13.69]
[1645924065787,1.98944966,87.337,87.226,113.6]
[1645924065985,1.98944966,87.337,87.23,13.69]
[1645924066586,4.582,87.336,87.23,13.69]
[1645924066787,1.98944966,87.337,87.19,4.582]
[1645924066987,1.93106855,87.328,87.19,18.272]
[1645924067186,4.583,87.327,87.19,13.69]
[1645924067690,1.93106855,87.328,87.21,17.1973]
[1645924067893,2.04254306,87.334,87.22,13.69]
[1645924068090,2.04254306,87.334,87.217,7.97]
[1645924068288,2.04254306,87.334,87.22,13.69]
[1645924068689,4.583,87.333,87.194,2.74678921]
[1645924068889,113.6,87.332,87.194,2.74678921]
[1645924069093,113.6,87.329,87.17,13.69]
[1645924069290,113.6,87.327,87.17,13.69]
[1645924069489,2.08416901,87.326,87.17,13.69]
[1645924069790,3.01830927,87.326,87.19,44.24121859]
[1645924069992,3.01830927,87.326,87.191,113.6]
[1645924070192,4.88,87.312,87.081,74.3291]
[1645924070396,4.88,87.282,87.096,16.9595]
[1645924070591,2.13761031,87.269,87.134,0.558625]
[1645924070890,1.86828052,87.268,87.134,0.558625]
[1645924071092,3.51934447,87.268,87.134,0.558625]
[1645924071291,23.3961,87.267,87.135,4.587]
[1645924071494,2.40955712,87.266,87.137,113.6]
[1645924071693,2.40955712,87.266,87.138,4.587]
[1645924072094,2.19145052,87.265,87.137,4.587]
[1645924072392,2.49593874,87.259,87.137,4.587]
[1645924072593,2.49593874,87.259,87.136,60.34562239]
[1645924072793,2.74678921,87.258,87.136,60.34562239]
[1645924072994,2.74678921,87.258,87.137,4.587]
[1645924073194,2.26504657,87.266,87.14,13.69]
[1645924073394,1.09572526,87.288,87.153,113.6]
[1645924073593,73.5951,87.336,87.153,113.6]
[1645924073594,2.18263759,87.279,87.161,113.6]
[1645924073794,2.18263759,87.279,87.16,13.69]
[1645924073996,2.18263759,87.279,87.161,4.586]
[1645924074193,2.74678921,87.278,87.153,4.586]
[1645924074394,2.74678921,87.278,87.152,58.39631162]
[1645924074594,113.6,87.277,87.152,58.39631162]
[1645924074795,2.30449331,87.276,87.152,58.39631162]
[1645924074995,1.8103604,87.274,87.152,58.39631162]
[1645924075196,2.24839743,87.258,87.152,58.39631162]
[1645924075599,2.19145052,87.257,87.152,58.39631162]
[1645924079900,2.24839743,87.258,87.153,113.6]
[1645924080098,2.24839743,87.258,87.16,13.69]
[1645924080297,1.84686776,87.275,87.16,13.69]
[1645924080703,1.84686776,87.275,87.161,4.586]
[1645924081099,1.84686776,87.275,87.17,17.2046]
[1645924081300,1.84686776,87.275,87.173,113.6]
[1645924081697,1.84686776,87.275,87.173,118.97]
[1645924081897,2.14335938,87.28,87.173,118.97]
[1645924082097,17.2048,87.29,87.173,118.97]
[1645924082299,17.1982,87.31,87.22,17.1957]
[1645924082499,4.585,87.326,87.221,55.97456183]
[1645924082705,2.74678921,87.317,87.221,55.97456183]
[1645924083302,4.583,87.316,87.221,55.97456183]
[1645924083504,2.35460958,87.324,87.221,55.97456183]
[1645924083703,17.203,87.33,87.222,113.6]
[1645924083903,1.86924004,87.329,87.222,113.6]
[1645924084204,1.96897397,87.345,87.222,113.6]
[1645924084403,25.94786096,87.361,87.221,61.91456183]
[1645924084404,2.38712801,87.36,87.28,17.1838]
[1645924084604,1.8216627,87.369,87.282,113.6]
[1645924084810,2.03087954,87.383,87.281,48.96823159]
[1645924085202,4.58,87.382,87.281,48.96823159]
[1645924085505,113.6,87.369,87.22,13.69]
[1645924085703,2.29193289,87.366,87.19,13.69]
[1645924085903,2.29193289,87.366,87.191,113.6]
[1645924086303,4.88,87.362,87.192,51.75036129]
[1645924086502,2.35190784,87.338,87.192,51.75036129]
[1645924086707,4.583,87.337,87.192,51.75036129]
[1645924086903,73.7152,87.338,87.193,113.6]
[1645924087104,2.30355954,87.337,87.194,4.583]
[1645924087607,2.30355954,87.337,87.195,2.74678921]
[1645924088505,4.583,87.336,87.233,113.6]
[1645924088713,26.0420574,87.358,87.241,113.6]
[1645924088906,2.42765584,87.357,87.241,113.6]
[1645924089107,2.42765584,87.357,87.24,13.69]
[1645924089306,4.581,87.356,87.241,0.25]
[1645924089506,1.79958163,87.359,87.241,9.65678921]
[1645924089706,4.581,87.358,87.241,9.65678921]
[1645924090006,4.581,87.358,87.241,6.91]
[1645924090207,26.0420574,87.357,87.241,6.91]
[1645924090409,6.98561189,87.356,87.241,6.91]
[1645924090605,2.40461189,87.356,87.241,6.91]
[1645924090808,2.40461189,87.356,87.242,2.74678921]
[1645924091210,4.581,87.359,87.243,113.85]
[1645924091409,2.1207164,87.379,87.244,1.80920486]
[1645924091612,2.1207164,87.379,87.281,172.90797819]
[1645924091807,4.58,87.411,87.281,179.49797819]
[1645924092010,6.65757949,87.412,87.282,0.25]
[1645924092209,6.65757949,87.412,87.283,2.41461538]
[1645924092411,2.07857949,87.412,87.284,0.25]
[1645924092606,2.4617229,87.419,87.32,17.1734]
[1645924092807,2.00193887,87.425,87.322,113.6]
[1645924093006,1.82562266,87.438,87.322,113.6]
[1645924094410,17.1732,87.43,87.321,56.9218088]
[1645924094612,6.91190874,87.429,87.321,56.9218088]
[1645924094809,2.4762883,87.428,87.321,56.9218088]
[1645924095211,6.64637076,87.427,87.321,56.9218088]
[1645924095413,2.1069124,87.426,87.321,56.9218088]
[1645924095811,4.6533529,87.425,87.321,56.9218088]
[1645924096012,17.1781,87.42,87.321,56.9218088]
[1645924096211,6.99476141,87.419,87.321,56.9218088]
[1645924096414,25.33015215,87.419,87.321,56.9218088]
[1645924096611,1.99333458,87.418,87.321,56.9218088]
[1645924096811,2.35146999,87.417,87.321,56.9218088]
[1645924097014,4.578,87.416,87.321,56.9218088]
[1645924097211,57.28,87.41,87.321,56.9218088]
[1645924097411,2.47477748,87.409,87.321,56.9218088]
[1645924097822,5.22156669,87.409,87.29,13.69]
[1645924098016,6.88436359,87.408,87.247,4.578]
[1645924098224,13.99172324,87.408,87.26,13.69]
[1645924098413,73.00097995,87.407,87.26,13.69]
[1645924098613,2.37568857,87.406,87.26,13.69]
[1645924098811,32.39643896,87.406,87.261,45.47102364]
[1645924099016,47.3408,87.407,87.261,45.47102364]
[1645924099017,28.12852304,87.405,87.261,45.47102364]
[1645924099220,6.85586346,87.404,87.261,45.47102364]
[1645924099413,36.87661385,87.404,87.261,45.47102364]
[1645924099618,13.69,87.4,87.261,45.47102364]
[1645924099915,2.33918585,87.398,87.261,45.47102364]
[1645924100315,29.14445469,87.397,87.261,45.47102364]
[1645924100515,2.35685304,87.396,87.261,45.47102364]
[1645924100813,25.66017995,87.396,87.261,45.47102364]
[1645924101014,1.93979962,87.394,87.261,45.47102364]
[1645924101213,1.97224057,87.379,87.261,45.47102364]
[1645924101817,1.65106395,87.378,87.261,45.47102364]
[1645924102015,1.94681546,87.377,87.261,45.47102364]
[1645924102221,24.8602062,87.377,87.261,45.47102364]
[1645924102417,2.19145052,87.376,87.261,45.47102364]
[1645924102715,2.11154007,87.375,87.261,45.47102364]
[1645924102919,2.02376145,87.374,87.261,45.47102364]
[1645924103116,26.58821614,87.374,87.261,45.47102364]
[1645924103319,2.05671536,87.373,87.261,45.47102364]
[1645924103515,4.80350457,87.373,87.261,45.47102364]
[1645924103715,1.65106395,87.372,87.261,45.47102364]
[1645924104717,1.65106395,87.372,87.262,113.6]
[1645924105017,24.56445469,87.372,87.261,45.47102364]
[1645924105417,4.80404345,87.371,87.261,45.47102364]
[1645924105617,2.74678921,87.371,87.261,45.47102364]
[1645924105820,2.21063469,87.379,87.261,45.47102364]
[1645924106018,17.1798,87.4,87.29,17.1783]
[1645924106220,1.82700372,87.399,87.292,60.47641263]
[1645924106419,2.08783124,87.406,87.293,113.6]
[1645924106624,2.08783124,87.406,87.293,116.34678921]
[1645924107022,2.08783124,87.406,87.294,2.74678921]
[1645924107419,2.08783124,87.406,87.293,113.6]
[1645924107822,2.08783124,87.406,87.294,2.74678921]
[1645924108320,2.08783124,87.406,87.293,113.6]
[1645924108819,2.08783124,87.406,87.292,60.47641263]
[1645924109423,22.85212315,87.405,87.292,60.47641263]
[1645924109619,2.00493787,87.399,87.292,60.47641263]
[1645924109819,4.579,87.398,87.292,60.47641263]
[1645924110021,113.6,87.397,87.292,60.47641263]
[1645924110228,6.84277845,87.396,87.292,60.47641263]
[1645924110419,2.26377845,87.396,87.292,60.47641263]
[1645924110619,4.579,87.395,87.292,60.47641263]
[1645924110822,33.87717189,87.395,87.292,60.47641263]
[1645924111022,2.35191817,87.394,87.292,60.47641263]
[1645924111222,115.53487196,87.393,87.251,22.6352]
[1645924111433,2.37550364,87.392,87.251,22.6352]
[1645924111628,113.6,87.369,87.22,13.69]
[1645924111826,2.19109742,87.368,87.22,13.69]
[1645924112023,4.93788663,87.368,87.22,13.69]
[1645924112223,22.85212315,87.367,87.222,43.11425313]
[1645924112524,5.87613348,87.367,87.222,45.86104234]
[1645924112730,2.13936083,87.369,87.224,1.81549258]
[1645924112926,1.65106395,87.393,87.231,113.6]
[1645924113125,70.8649,87.437,87.241,113.6]
[1645924113126,1.49655937,87.414,87.241,113.6]
[1645924113326,1.49655937,87.417,87.243,113.6]
[1645924113524,1.89689505,87.417,87.301,113.6]
[1645924113726,17.1844,87.41,87.303,113.6]
[1645924113925,2.24870379,87.409,87.303,113.6]
[1645924114124,2.24870379,87.409,87.302,56.73500773]
[1645924114525,2.24870379,87.409,87.303,113.6]
[1645924114725,2.24870379,87.409,87.311,113.6]
[1645924115732,4.578,87.425,87.34,17.1735]
[1645924115934,2.26444635,87.429,87.341,113.6]
[1645924116130,2.44321104,87.436,87.343,113.6]
[1645924116533,2.44321104,87.436,87.344,2.74678921]
[1645924116934,4.577,87.435,87.344,2.74678921]
[1645924117437,2.44321104,87.436,87.36,17.17]
[1645924117635,2.44321104,87.436,87.361,56.75773711]
[1645924117835,2.44321104,87.436,87.362,113.6]
[1645924118435,2.44321104,87.436,87.361,56.75773711]
[1645924118636,17.1714,87.43,87.361,56.75773711]
[1645924118834,2.29331395,87.429,87.361,56.75773711]
[1645924124557,2.05492407,87.436,87.362,113.6]
[1645924124754,2.34354978,87.456,87.362,120.93]
[1645924125453,17.1673,87.45,87.38,17.1669]
[1645924125655,1.85034938,87.449,87.381,51.23350384]
[1645924126558,1.85034938,87.449,87.382,113.6]
[1645924126756,1.85034938,87.449,87.382,6.99]
[1645924127363,2.2749368,87.475,87.39,13.69]
[1645924127565,2.40715547,87.489,87.391,113.6]
[1645924127963,2.74678921,87.506,87.391,113.6]
[1645924128161,2.25937746,87.509,87.391,113.6]
[1645924128361,2.25937746,87.509,87.401,113.6]
[1645924128561,2.25937746,87.509,87.411,113.6]
[1645924129164,2.25937746,87.509,87.41,13.69]
[1645924129360,17.1618,87.48,87.41,13.69]
[1645924129561,1.95067907,87.479,87.41,13.69]
[1645924129764,1.95067907,87.479,87.402,57.71970431]
[1645924129765,24.93224894,87.508,87.402,57.71970431]
[1645924129961,27.25827078,87.508,87.402,57.71970431]
[1645924130161,21.78124182,87.489,87.402,57.71970431]
[1645924130362,17.1656,87.47,87.402,57.71970431]
[1645924130561,4.21249174,87.488,87.402,57.71970431]
[1645924130960,2.04201301,87.486,87.402,57.71970431]
[1645924131163,57.223,87.48,87.402,57.71970431]
[1645924131363,2.08856155,87.479,87.402,57.71970431]
[1645924132568,2.74678921,87.487,87.402,57.71970431]
[1645924132863,2.24679998,87.498,87.402,65.73970431]
[1645924133463,47.2502,87.52,87.403,113.6]
[1645924133666,1.969273,87.514,87.403,116.34678921]
[1645924133862,2.74678921,87.518,87.404,2.74678921]
[1645924134466,17.1592,87.5,87.411,113.6]
[1645924134665,1.80305432,87.499,87.421,113.6]
[1645924134868,1.80305432,87.499,87.423,113.6]
[1645924135266,1.80305432,87.499,87.422,58.8663309]
[1645924138272,1.70305432,87.499,87.422,58.8663309]
[1645924138469,17.1593,87.49,87.422,58.8663309]
[1645924139370,57.2009,87.51,87.422,58.8663309]
[1645924139572,2.28940187,87.517,87.39,13.69]
[1645924139771,2.74678921,87.489,87.333,24.1506]
[1645924139974,4.88,87.452,87.3,13.69]
[1645924140170,4.88,87.452,87.255,2.38363776]
[1645924140171,2.18497873,87.45,87.255,2.38363776]
[1645924140372,112.2,87.42,87.255,2.59036502]
[1645924140674,47.3983,87.419,87.282,115.82213474]
[1645924140870,47.3983,87.419,87.281,49.13731452]
[1645924140871,1.81692105,87.418,87.293,2.28580183]
[1645924141673,1.81692105,87.418,87.294,0.25]
[1645924141973,47.3983,87.419,87.351,170.08065915]
[1645924142173,17.1708,87.43,87.351,170.08065915]
[1645924142579,1.91573417,87.429,87.351,170.08065915]
[1645924143375,1.91573417,87.429,87.351,56.48065915]
[1645924143675,1.94971081,87.419,87.351,56.48065915]
[1645924145078,17.1745,87.41,87.351,56.48065915]
[1645924145275,1.88518472,87.409,87.351,56.48065915]
[1645924146577,1.88518472,87.409,87.326,113.6]
[1645924146779,1.88518472,87.409,87.294,23.259]
[1645924146780,2.19145052,87.408,87.294,23.259]
[1645924146980,26.531775,87.408,87.294,23.259]
[1645924147180,1.93849729,87.406,87.29,13.69]
[1645924147582,2.19145052,87.405,87.301,113.6]
[1645924147982,1.93849729,87.406,87.301,113.6]
[1645924148182,1.99390464,87.401,87.301,113.6]
[1645924148681,1.99390464,87.401,87.31,17.1801]
[1645924148878,1.99390464,87.401,87.311,52.66680398]
[1645924150483,24.08206574,87.4,87.267,23.8085]
[1645924150688,2.26018713,87.399,87.267,23.8085]
[1645924150881,4.45163765,87.399,87.271,113.6]
[1645924151081,28.66206574,87.398,87.271,113.6]
[1645924151281,1.93208327,87.397,87.271,113.6]
[1645924151480,28.20559953,87.397,87.28,17.1857]
[1645924151679,2.10797601,87.396,87.28,17.1857]
[1645924151882,25.02076766,87.395,87.28,17.1857]
[1645924152082,2.10305202,87.394,87.28,17.1857]
[1645924152282,26.18511776,87.394,87.28,17.1857]
[1645924152482,6.40886738,87.393,87.272,45.47891819]
[1645924152686,33.23772233,87.393,87.272,45.47891819]
[1645924152884,13.69,87.39,87.272,45.47891819]
[1645924153084,6.32459029,87.389,87.272,45.47891819]
[1645924153284,33.15344524,87.389,87.272,45.47891819]
[1645924153483,1.79143684,87.388,87.272,45.47891819]
[1645924153684,4.58,87.387,87.272,45.47891819]
[1645924153883,36.07992431,87.387,87.272,45.47891819]
[1645924154083,26.16928537,87.386,87.272,45.47891819]
[1645924154283,6.65246479,87.385,87.272,45.47891819]
[1645924154484,113.6,87.384,87.24,13.69]
[1645924154684,113.6,87.379,87.23,17.195]
[1645924154887,17.1952,87.36,87.221,23.704]
[1645924155083,73.82130775,87.359,87.221,23.704]
[1645924155285,2.28593406,87.358,87.221,23.704]
[1645924155487,4.582,87.357,87.222,47.56946901]
[1645924155685,9.19903376,87.357,87.24,17.193]
[1645924155886,4.61703376,87.357,87.241,53.322117]
[1645924156086,2.74678921,87.356,87.241,53.322117]
[1645924156689,2.74678921,87.356,87.241,52.822117]
[1645924157086,4.581,87.355,87.241,52.822117]
[1645924157488,1.09572526,87.354,87.241,52.822117]
[1645924157691,2.74678921,87.354,87.242,113.6]
[1645924157900,2.74678921,87.354,87.241,52.822117]
[1645924158794,2.74678921,87.354,87.242,113.6]
[1645924158996,2.74678921,87.354,87.241,52.822117]
[1645924159893,21.7428655,87.353,87.242,113.6]
[1645924160093,2.21169845,87.352,87.242,113.6]
[1645924160294,3.30742371,87.352,87.242,113.6]
[1645924160496,1.65106395,87.351,87.242,113.6]
[1645924161416,0.05903586,87.35,87.242,113.6]
[1645924161918,4.48383389,87.349,87.242,113.6]
[1645924162317,1.65106395,87.348,87.242,113.6]
[1645924164720,1.65106395,87.348,87.242,111.1]
[1645924164919,1.65106395,87.348,87.241,52.822117]
[1645924165522,7.41546102,87.347,87.241,52.822117]
[1645924165724,53.63682652,87.347,87.241,52.822117]
[1645924165926,4.43403741,87.346,87.22,13.69]
[1645924166225,4.43403741,87.346,87.19,13.69]
[1645924166226,4.88,87.342,87.19,13.69]
[1645924166423,2.191572,87.328,87.19,13.69]
[1645924166722,2.12432045,87.325,87.19,13.69]
[1645924166922,4.583,87.324,87.191,46.99885992]
[1645924167121,13.69,87.31,87.191,46.99885992]
[1645924167322,30.64185793,87.309,87.191,46.99885992]
[1645924167521,28.3572,87.309,87.191,46.99885992]
[1645924167724,6.79575554,87.308,87.191,46.99885992]
[1645924167921,4.583,87.307,87.191,46.99885992]
[1645924168122,2.74678921,87.307,87.191,46.99885992]
[1645924168328,2.83346102,87.306,87.191,46.99885992]
[1645924168524,5.58025023,87.306,87.191,46.99885992]
[1645924168724,9.45128155,87.305,87.191,46.99885992]
[1645924168922,2.30434903,87.299,87.191,46.99885992]
[1645924169123,113.6,87.299,87.191,46.99885992]
[1645924169325,6.31835972,87.298,87.191,46.99885992]
[1645924169525,4.48214893,87.298,87.191,46.99885992]
[1645924169725,50.18148921,87.297,87.191,46.99885992]
[1645924169923,2.26298736,87.296,87.191,46.99885992]
[1645924170122,5.00977657,87.296,87.191,46.99885992]
[1645924170526,2.74678921,87.295,87.191,46.99885992]
[1645924170926,2.74678921,87.295,87.2,17.2008]
[1645924171725,2.74678921,87.295,87.191,46.99885992]
[1645924172525,17.2085,87.29,87.191,46.99885992]
[1645924172731,6.54542663,87.289,87.166,113.6]
[1645924172931,8.19649058,87.289,87.161,113.6]
[1645924173224,22.67083891,87.288,87.166,113.6]
[1645924173427,6.32667411,87.287,87.166,113.6]
[1645924173625,6.22619908,87.287,87.167,47.90168342]
[1645924173825,20.47938839,87.286,87.167,47.90168342]
[1645924174025,2.29493227,87.285,87.167,47.90168342]
[1645924174225,5.04172148,87.285,87.167,47.90168342]
[1645924174425,4.585,87.284,87.168,113.6]
[1645924174627,1.86224352,87.283,87.168,113.6]
[1645924174825,1.86224352,87.283,87.171,113.6]
[1645924175526,1.86224352,87.283,87.19,17.2045]
[1645924175726,1.86224352,87.283,87.191,43.23437022]
[1645924176427,1.86224352,87.283,87.192,113.6]
[1645924177026,1.86224352,87.283,87.191,43.23437022]
[1645924177226,2.74678921,87.282,87.191,43.23437022]
[1645924177526,1.86224352,87.283,87.191,43.23437022]
[1645924177730,2.74678921,87.282,87.191,43.23437022]
[1645924177931,1.72101798,87.28,87.191,43.23437022]
[1645924178328,2.74678921,87.279,87.191,43.23437022]
[1645924179128,2.74678921,87.279,87.2,17.2036]
[1645924183133,2.74678921,87.279,87.191,43.23437022]
[1645924183539,2.2319391,87.277,87.191,43.23437022]
[1645924183733,4.585,87.276,87.191,43.23437022]
[1645924183933,2.2319391,87.277,87.191,43.23437022]
[1645924184133,7.33178921,87.276,87.191,43.23437022]
[1645924184338,2.74678921,87.275,87.191,43.23437022]
[1645924185335,2.74678921,87.275,87.2,17.2047]
[1645924185947,2.74678921,87.275,87.192,113.6]
[1645924186337,2.24458259,87.283,87.192,113.6]
[1645924186537,17.2099,87.29,87.193,2.74678921]
[1645924187541,17.2099,87.29,87.24,17.197]
[1645924187841,17.2099,87.29,87.241,53.2421896]
[1645924190239,2.00563451,87.289,87.241,53.2421896]
[1645924190443,2.19145052,87.303,87.251,113.6]
[1645924190643,2.33533916,87.347,87.251,119.38]
[1645924191542,2.33533916,87.347,87.28,17.1881]
[1645924191743,2.33533916,87.347,87.281,56.45391745]
[1645924192543,2.33533916,87.347,87.27,17.1908]
[1645924192745,2.33533916,87.347,87.25,13.69]
[1645924193042,2.36420176,87.345,87.25,13.69]
[1645924193343,2.36420176,87.345,87.22,13.69]
[1645924193546,5.67772526,87.344,87.221,44.81263894]
[1645924193746,29.39296659,87.344,87.24,17.197]
[1645924193946,3.38955864,87.343,87.241,47.55366791]
[1645924194342,4.52701626,87.342,87.241,47.55366791]
[1645924194744,6.04452497,87.341,87.241,47.55366791]
[1645924194944,4.582,87.34,87.241,47.55366791]